Cogmind - Beta 17.1 @@@ ROGUE MODE // 2026.08.25 @ 17:02:50 Player: obl-vn Result: Destroyed by S-10 Pest with Light Assault Rifle Performance ------------- Evolutions (0) 0 Regions Visited (1) 200 Robots Destroyed (13) 65 Value Destroyed (253) 253 Prototype IDs (1) 20 Alien Tech Used (0) 0 Bonus (5000) 5000 TOTAL SCORE: 5538 Bonus ------- Prayed to X0-1V1 5000 Cogmind --------- Core Integrity 0/100 Matter 259/300 Energy 250/250 System Corruption 0% Temperature Cool (0) Movement Rolling (130) Ox2 Location -10/Materials Parts ------- > --- POWER (1) -------- Ion Engine > --- PROPULSION (2) --- Compact Wheel Compact Wheel > --- UTILITY (2) ------ Huge Storage Unit Self-contained Transmogrifier > --- WEAPON (2) ------- Assault Rifle Multitool (fused) > --- INVENTORY (25) --- Ion Engine Ion Engine Ion Engine Ion Engine Light Treads Light Treads Light Treads Light Treads Wheel Wheel Light Armor Plating Light Armor Plating Light Armor Plating Light Armor Plating Light Armor Plating X0-1V1's Piety Tracker Medium Laser Grenade Launcher Peak State ------------ > --- POWER ------------ Ion Engine > --- PROPULSION ------- Compact Wheel Compact Wheel > --- UTILITY ---------- Huge Storage Unit Self-contained Transmogrifier > --- WEAPON ----------- Assault Rifle Multitool > --- INVENTORY -------- Ion Engine Ion Engine Ion Engine Ion Engine Light Treads Light Treads Light Treads Light Treads Wheel Wheel Light Armor Plating Light Armor Plating Light Armor Plating Light Armor Plating Light Armor Plating X0-1V1's Piety Tracker Medium Laser Grenade Launcher [Rating: 19] Favorites ----------- Power Ion Engine Engine Ion Engine Propulsion Light Treads Treads Light Treads Wheel Compact Wheel Utility Huge Storage Unit Device Self-contained Transmogrifier Storage Huge Storage Unit Protection Light Armor Plating Weapon Assault Rifle Energy Gun Medium Laser Ballistic Gun Assault Rifle Special Weapon Multitool Build | -11 -10 ------- Run | Yrd Mat Slots Evolved . | . . Power . | . . Propulsion . | . . Utility . | . . Weapon . | . . Parts Attached 10 | 6 4 Power 1 | 1 . Engine 1 | 1 . Core . | . . Reactor . | . . Propulsion 4 | 2 2 Treads 2 | 2 . Leg . | . . Wheel 2 | . 2 Hover . | . . Flight . | . . Utility 3 | 1 2 Device . | . . Storage 2 | 1 1 Processor . | . . Hackware . | . . Protection 1 | . 1 Artifact . | . . Weapon 2 | 2 . Energy Gun 1 | 1 . Energy Cannon . | . . Ballistic Gun 1 | 1 . Ballistic Cannon . | . . Launcher . | . . Special Weapon . | . . Impact Weapon . | . . Slashing Weapon . | . . Piercing Weapon . | . . Special Melee Weapon . | . . Unidentified Prototypes . | . . Parts Lost . | . . Power . | . . Propulsion . | . . Utility . | . . Weapon . | . . Highest Loss Streak . | . . To Critical Strikes . | . . Average Backups 13 | 2 13 Power 2 | . 2 Propulsion 4 | 1 4 Utility 4 | . 4 Weapon 1 | . 1 Tool/Special . | . . Unused Backups 16 | . 16 Power 4 | . 4 Propulsion 4 | . 4 Utility 6 | . 6 Weapon 2 | . 2 Tool/Special . | . . Average Slot Usage (%) 98 | . 98 Engine 14 | . 14 Treads 23 | . 23 Wheel 4 | . 4 Storage 14 | . 14 Protection 12 | . 12 Energy Gun 13 | . 13 Ballistic Gun 14 | . 14 Peak Build Rating 19 | 6 19 Average Rating 8 | 4 8 On Entrance 3 | . 6 Avg Prop Armor Cover (%) 10 | . 10 Naked Turns . | . . Heaviest Build 92 | 14 92 Greatest Support 40 | 40 40 Greatest Overweight (x) 5 | 3 5 Average Overweight (x) 2 | . 2 Largest Inventory Capacity 25 | 8 25 Average Capacity 22 | 7 23 Most Carried 18 | 5 18 Average Carried 13 | 2 13 Final Capacity 25 | 8 25 Final Carried 18 | 3 18 Transmogrified Parts 1 | . 1 Integrity Recovered 6 | . 6 Class Distribution -------------------- 100% | Mutant Dominant Class ---------------- Mutant | -10/Materials Resources | -11 -10 ----------- Run | Yrd Mat Matter Collected 425 | 200 225 Remotely . | . . Salvage Created 404 | . 404 Parts 17 | . 17 Haulers Intercepted 2 | . 2 Recyclers Shooed . | . . Parts Field Recycled . | . . Retrieved Matter . | . . Parts Self-Destructed . | . . Prevented . | . . Parts Restored . | . . Kills | -11 -10 ------- Run | Yrd Mat Combat Hostiles Destroyed 9 | . 9 Guns 9 | . 9 Classes Destroyed 4 | . 4 Worker 2 | . 2 Hauler 2 | . 2 Swarmer 3 | . 3 Grunt 6 | . 6 Best Kill Streak 3 | . 3 Combat Bots Only 3 | . 3 Max Kills in Single Turn 1 | . 1 Gunslinging . | . . Exploded . | . . Melee . | . . Uniques/NPCs Destroyed . | . . Combat | -11 -10 -------- Run | Yrd Mat Hostile Shots Fired 59 | . 59 Missed 11 | . 11 Hits 48 | . 48 Projectile 48 | . 48 Critical Strikes 1 | . 1 Damage Taken 511 | . 511 Core 105 | . 105 Absorbed by Shields . | . . Core Remaining (%) 100 | 100 . Volleys Fired 42 | . 42 Largest 2 | . 2 Hottest 70 | . 70 Shots Fired 83 | . 83 Gun 83 | . 83 Cannon . | . . Launcher . | . . Special . | . . Kinetic 42 | . 42 Thermal 41 | . 41 Explosive . | . . Electromagnetic . | . . Robot Hit Streak 21 | . 21 Robot Miss Streak 3 | . 3 Penetration Max . | . . Secondary Targets . | . . Shots Hit Robots 58 | . 58 Core Hits 23 | . 23 Critical Kills . | . . Critical Parts Destroyed 1 | . 1 Critical Strikes 6 | . 6 Burn 5 | . 5 Destroy 1 | . 1 Melee Attacks . | . . Impact . | . . Slashing . | . . Piercing . | . . Sneak Attacks . | . . Combat Hostiles . | . . Follow-up Attacks . | . . Damage Inflicted 739 | . 739 Guns 739 | . 739 Cannons . | . . Explosions . | . . Melee . | . . Ramming . | . . Kinetic 362 | . 362 Thermal 377 | . 377 Explosive . | . . Electromagnetic . | . . Impact . | . . Slashing . | . . Piercing . | . . Highest Corruption . | . . Average Corruption . | . . Corruption Purged . | . . Corruption Blocked . | . . Overload Shots . | . . Overflow Damage . | . . Projectiles . | . . Explosions . | . . Melee . | . . Knockbacks . | . . Impact . | . . Kinetic . | . . Secondary . | . . Self-Inflicted Damage . | . . Shots . | . . Rammed . | . . Targets Rammed . | . . Kicked . | . . Crushed . | . . Highest Temperature 198 | . 198 Average Temperature 58 | . 58 Received Heat Transfer 243 | . 243 Siege Activations . | . . Martial Activations . | . . Shielding Activations . | . . Robots Disrupted . | . . Combat Hostiles . | . . Robots Corrupted . | . . Combat Hostiles . | . . Parts Fried . | . . Impact Corruptions . | . . Robots Melted . | . . Combat Hostiles . | . . Parts Melted 3 | . 3 Heat Transferred 1480 | . 1480 Parts Sabotaged . | . . Parts Stolen . | . . Parts Stripped . | . . Power Chain Reactions . | . . Alert | -11 -10 ------- Run | Yrd Mat Maximum Alert Level . | . . Low Security (%) 100 | 100 100 Level 1 . | . . Level 2 . | . . Level 3 . | . . Level 4 . | . . Level 5 . | . . High Security . | . . Max Security . | . . Peak Influence 101 | . 101 Initial . | . . Average 14 | . 15 Influence Increases 309 | . 309 Destroy 0b10 Robot/C 180 | . 180 Destroy 0b10 Robot/NC 20 | . 20 Destroy Leader 44 | . 44 Successful Hack 18 | . 18 Destroy Structure 2 | . 2 Lose Combat Pursuer 45 | . 45 Influence Decreases 237 | . 237 Time Decay 237 | . 237 Squads Dispatched 2 | . 2 Investigation 1 | . 1 Extermination . | . . Reinforcement 1 | . 1 Assault . | . . Garrison . | . . Intercept . | . . Searches Triggered . | . . Construction Impeded . | . . Haulers Reinforced . | . . Active Scanning Responses . | . . Cargo Convoy Interrupts . | . . Stealth | -11 -10 --------- Run | Yrd Mat Distress Signals 1 | . 1 Communications Jammed . | . . Distress Signals . | . . Times Spotted 23 | . 23 Peak Tracking Total 4 | . 4 Tactical Retreats 2 | . 2 Traps | -11 -10 ------- Run | Yrd Mat Traps Triggered 1 | . 1 Indirectly . | . . Trap Hack Attempts . | . . Triggered . | . . Disarmed . | . . Reprogrammed . | . . Reused . | . . Traps Extracted . | . . Installed . | . . Triggered . | . . Machines | -11 -10 ---------- Run | Yrd Mat Machines Disabled . | . . Max in Single Turn . | . . Machines Repaired . | . . Machines Dismantled . | . . Machines Sabotaged . | . . Overloaded Fab Kills . | . . Hacking | -11 -10 --------- Run | Yrd Mat Machines Accessed 6 | . 6 Terminals 6 | . 6 Fabricators . | . . Repair Stations . | . . Recycling Units . | . . Scanalyzers . | . . Garrison Access . | . . Total Hacks 17 | . 17 Successful 9 | . 9 Failed 8 | . 8 Catastrophic . | . . Database Lockouts . | . . Manual 13 | . 13 Terminals 17 | . 17 Fabricators . | . . Repair Stations . | . . Recycling Units . | . . Scanalyzers . | . . Garrison Access . | . . Terminal Hacks 2 | . 2 Robot Analysis 1 | . 1 Locate Traps 1 | . 1 Fabricator Hacks . | . . Repair Station Hacks . | . . Recycling Unit Hacks . | . . Scanalyzer . | . . Garrison Access Hacks . | . . Unauthorized Hacks 7 | . 7 Terminals 7 | . 7 Botnet 1 | . 1 Skim 6 | . 6 Fabricators . | . . Repair Stations . | . . Recycling Units . | . . Scanalyzers . | . . Garrison Access . | . . Data Cores Recovered . | . . Used . | . . Hacking Detections 5 | . 5 Full Trace Events . | . . Feedback Events . | . . Feedback Blocked . | . . Robot Schematics Acquired . | . . Robots Built . | . . Authchips . | . . Time . | . . Total Robot Build Rating . | . . Part Schematics Acquired . | . . Parts Built . | . . Authchips . | . . Time . | . . Total Part Build Rating . | . . Part Studies Acquired . | . . Parts Repaired . | . . Time . | . . Parts Recycled . | . . Recycled Matter . | . . Retrieved Matter . | . . Retrieved Components . | . . Parts Scanalyzed . | . . Part Schematics Acquired . | . . Parts Damaged . | . . Bothacking | -11 -10 ------------ Run | Yrd Mat Used RIF Installer . | . . Robots Hacked . | . . Non-combat . | . . Combat . | . . Robot Hacks Applied . | . . Relay Couplers Released . | . . Fabnet Peak Effective % . | . . Robots Rewired . | . . Allies Hacked . | . . Hacks Repelled . | . . Allies | -11 -10 -------- Run | Yrd Mat Total Allies . | . . Largest Group . | . . Highest-Rated Group . | . . Highest-Rated Ally . | . . Total Orders . | . . Ally Attacks . | . . Total Damage . | . . Kills . | . . Allies Corrupted . | . . Allies Melted . | . . X0-1V1 Amusement Gains 18 | . 18 Average Entertainment 33 | . 33 Intel | -11 -10 ------- Run | Yrd Mat Active Infowar (turns) . | . . Robot Analysis Total 1 | . 1 Derelict Logs Recovered . | . . Drone Launches . | . . Drone Recoveries . | . . Exploration | -11 -10 ------------- Run | Yrd Mat Turns Passed 1811 | 77 1734 Spaces Moved 599 | 46 553 Core 17 | 17 . Treads 313 | 29 284 Legs . | . . Wheels 269 | . 269 Hover . | . . Flight . | . . Fastest Speed 50 | 50 130 Average Speed 212 | 138 218 Slowest Speed 320 | 200 320 Overloaded Moves . | . . Propulsion Burnouts . | . . Robots Hopped . | . . Potential Cave-ins . | . . Cave-ins Triggered . | . . Exploration Rate (%) 43 | 3 83 Regions Visited 1 Branch Regions . Pre-discovered Areas 1 | . 1 Known Exits Taken . | . . Unknown Exits Taken 1 | 1 . Scrap Searched . | . . Spaces Dug . | . . Terrain Destroyed . | . . Melee . | . . Projectile . | . . AOE . | . . Terrain Rammed . | . . Walls Destroyed . | . . Machines Disabled . | . . Actions | -11 -10 --------- Run | Yrd Mat Total 1048 | 58 990 Wait 370 | . 370 Move 598 | 45 553 Hop . | . . Pick Up 22 | 7 15 Fast Attach 3 | 2 1 Attach 4 | 4 . Detach . | . . Swap 7 | . 7 Drop 2 | . 2 Fire 42 | . 42 Melee . | . . Ram . | . . Kick . | . . Crush . | . . Escape Stasis . | . . Rewire . | . . Trap . | . . Miscellaneous . | . . Route ------- -11/Scrapyard -10/Materials (discovered 5 exits: *Mat x3 / [*Min] / *Sub) History --------- Turn | Location | Event 8 | -11/Scrapyard | Discovered new exit (range 14) 78 | -11/Scrapyard | Entered Materials 316 | -10/Materials | Build established: Mutant 533 | -10/Materials | Discovered new exit (range 7) 949 | -10/Materials | Discovered new exit (range 11) 1107 | -10/Materials | Discovered new exit (range 11) 1140 | -10/Materials | Learned Storage garrison access intel 1259 | -10/Materials | Identified exit to Materials 1302 | -10/Materials | Learned Materials stockpile data 1336 | -10/Materials | Identified exit to Subcaves 1336 | -10/Materials | Learned location of 1 exit from Materials 1372 | -10/Materials | Learned Storage trap positions 1396 | -10/Materials | Learned 4 Recycling zone layouts 1429 | -10/Materials | Learned location of 2 exits from Mines 1735 | -10/Materials | Made a sacrifice at D.C.S.S. Altar Unit 1735 | -10/Materials | Forcibly received Sfc. Transmogifier from X0-1V1 1736 | -10/Materials | Core integrity fell below 50% 1736 | -10/Materials | Core integrity fell below 20% 1812 | -10/Materials | Destroyed by S-10 Pest with Light Assault Rifle Last Messages --------------- (x4). 01429_ >> SKIM: Stored Mines exits (x2). 01473_ >> SKIM: World map updated: -8/Materials. 01473_ >> SKIM: Data seek routine purged. 01481_ K-01 Serf collects debris. 01536_ G-34 Mercenary destroyed. 01542_ Acquired 11 matter. 01603_ W-16 Scout sends out distress signal. 01612_ S-10 Pest destroyed. 01664_ K-01 Serf cleans the Terminal. 01734_ Connecting with D.C.S.S. Altar Unit... 01734_ Dropped Lgt. Armor Plating. 01735_ Connecting with D.C.S.S. Altar Unit... >>sacrifice An interesting new toy? 01741_ Acquired Prototype Device. 01764_ Sfc. Transmogrifier converts Med. Laser into Multitool. 01797_ K-01 Serf collects debris. 01812_ X0-1V1 cackles wildly! Map ----- +----------------------------------------------------+ | ?????# #????# """ #???????????# | | ?????# #????# #???????????# | | ?????# #????# """ #???????????# | | ????## ##???# """ #???????????# | | ????# ##### """ #???????????# """ | | ????# T + % #???????????# """ | | ????# #########"####???????????# "?? | | ????## ######### [=#???###???????? ??? | | ?????# # # #?? #???????? ????? | | ?????# # + #?? #??????????????? | | ?????# # # #? #??????????????? | | ?????# #########%= #? #??????????????? | | ?????# #?# [ # #??????????????? | | ?????# #?# ^ # #??????????????? | | ?????# #?# " s + #??????????????? | | ?????# #?# """ ss# #??????????????? | | ?????# #?#^ """ #######??????????????? | | ?????# #?# """ # #??????????????? | | ?????# #?# "" # "#??????????????? | | ?????# #?#^ """ # "#??????????????? | | ?????# #?# "" # "#??????????????? | | ?????# ### """ # T#??????????????? | | ?????# * " =#w "#??????????????? | | ?????# %k* "#??????????????? | | ?????# # "#??????????????? | | ?????###+####+##@< # #?????????????